Cogmind - Beta 13 @@@ ROGUE MODE // 2024.04.21 @ 09:05:53 Player: YBOUZL Result: Destroyed by G-34 Mercenary with Small Laser Performance ------------- Evolutions (1) 500 Regions Visited (2) 400 Robots Destroyed (9) 45 Value Destroyed (332) 332 Prototype IDs (0) 0 Alien Tech Used (0) 0 Bonus (0) 0 TOTAL SCORE: 1277 Bonus ------- None Cogmind --------- Core Integrity 0/400 Matter 164/300 Energy 97/100 System Corruption 1% Temperature Cool (6) Movement Rolling (90) Location -9/Materials Parts ------- > --- POWER (2) -------- (None) > --- PROPULSION (2) --- Armored Wheel > --- UTILITY (2) ------ Terrain Scan Processor > --- WEAPON (3) ------- Autogun Autogun Autogun > --- INVENTORY (5) ---- Aluminum Leg EM Pulse Gun EM Pulse Gun Autogun Peak State ------------ > --- POWER ------------ (None) > --- PROPULSION ------- Armored Wheel > --- UTILITY ---------- Terrain Scan Processor > --- WEAPON ----------- Autogun Autogun Autogun > --- INVENTORY -------- Aluminum Leg [Rating: 10] Favorites ----------- Power Ion Engine Engine Ion Engine Propulsion Aluminum Leg Leg Aluminum Leg Wheel Armored Wheel Utility Structural Scanner Device Structural Scanner Storage Small Storage Unit Processor Terrain Scan Processor Protection Light Armor Plating Weapon Light Assault Rifle Energy Gun Medium Laser Ballistic Gun Light Assault Rifle Build | -11 -10 -9 ------- Run | Yrd Mat Mat Slots Evolved 2 | . . 2 Power 1 | . . 1 Propulsion . | . . . Utility . | . . . Weapon 1 | . . 1 Parts Attached 25 | 7 3 15 Power 2 | 1 1 . Engine 2 | 1 1 . Core . | . . . Reactor . | . . . Propulsion 7 | 2 . 5 Treads . | . . . Leg 4 | 2 . 2 Wheel 3 | . . 3 Hover . | . . . Flight . | . . . Utility 7 | 1 2 4 Device 1 | . 1 . Storage 3 | 1 . 2 Processor 1 | . . 1 Hackware . | . . . Protection 2 | . 1 1 Artifact . | . . . Weapon 9 | 3 . 6 Energy Gun 4 | 2 . 2 Energy Cannon . | . . . Ballistic Gun 5 | 1 . 4 Ballistic Cannon . | . . . Launcher . | . . . Special Weapon . | . . . Impact Weapon . | . . . Slashing Weapon . | . . . Piercing Weapon . | . . . Special Melee Weapon . | . . . Unidentified Prototypes . | . . . Parts Lost 8 | . . 8 Power 1 | . . 1 Propulsion 1 | . . 1 Utility 3 | . . 3 Weapon 3 | . . 3 Highest Loss Streak 5 | . . 5 To Critical Strikes . | . . . Average Slot Usage (%) 73 | . 98 58 Engine 10 | . 14 7 Leg 18 | . 28 12 Wheel 3 | . . 6 Device 7 | . 7 8 Storage 3 | . 6 1 Processor 1 | . . 2 Protection 7 | . 12 5 Energy Gun 9 | . 14 6 Ballistic Gun 10 | . 14 8 Naked Turns . | . . . Heaviest Build 16 | 13 16 12 Greatest Support 24 | 20 20 24 Greatest Overweight (x) 2 | . . 2 Average Overweight (x) . | . . . Largest Inventory Capacity 8 | 8 8 5 Average Capacity 5 | 6 6 5 Most Carried 5 | 5 1 5 Average Carried . | 1 . 1 Final Capacity 8 | 8 5 5 Final Carried 4 | . . 4 Class Distribution -------------------- 96% | Mutant 3% | Gunner Dominant Class ---------------- Mutant | -10/Materials Mutant | -9/Materials Resources | -11 -10 -9 ----------- Run | Yrd Mat Mat Matter Collected 388 | 265 40 83 Remotely . | . . . Salvage Created 400 | . 90 310 Parts 22 | . 5 17 Haulers Intercepted . | . . . Recyclers Shooed . | . . . Parts Field Recycled . | . . . Retrieved Matter . | . . . Parts Self-Destructed . | . . . Prevented . | . . . Kills | -11 -10 -9 ------- Run | Yrd Mat Mat Combat Hostiles Destroyed 9 | . 2 7 Guns 9 | . 2 7 Classes Destroyed 3 | . 1 2 Grunt 7 | . 2 5 Brawler 1 | . . 1 Sentry 1 | . . 1 Best Kill Streak 5 | . 2 5 Combat Bots Only 5 | . 2 5 Max Kills in Single Turn 2 | . 1 2 Gunslinging 1 | . . 1 Exploded . | . . . Melee . | . . . Uniques/NPCs Destroyed . | . . . Combat | -11 -10 -9 -------- Run | Yrd Mat Mat Hostile Shots Fired 121 | . 8 113 Missed 27 | . 2 25 Damage Taken 1301 | . 149 1152 Core 442 | . 37 405 Absorbed by Shields . | . . . Core Remaining (%) 92 | 100 85 . Volleys Fired 28 | . 5 23 Largest 3 | . 2 3 Hottest 70 | . 70 70 Shots Fired 60 | . 10 50 Gun 60 | . 10 50 Cannon . | . . . Launcher . | . . . Special . | . . . Kinetic 40 | . 5 35 Thermal 16 | . 5 11 Explosive . | . . . Electromagnetic 4 | . . 4 Robot Hit Streak 10 | . 5 10 Robot Miss Streak 2 | . 2 2 Penetration Max . | . . . Secondary Targets 3 | . . 3 Max Gunslinging Chain 1 | . . 1 Shots Hit Robots 42 | . 7 35 Core Hits 23 | . 5 18 Critical Kills . | . . . Critical Parts Destroyed . | . . . Critical Strikes 3 | . 1 2 Burn 3 | . 1 2 Melee Attacks . | . . . Impact . | . . . Slashing . | . . . Piercing . | . . . Sneak Attacks . | . . . Combat Hostiles . | . . . Follow-up Attacks . | . . . Damage Inflicted 536 | . 74 462 Guns 530 | . 74 456 Cannons . | . . . Explosions . | . . . Melee . | . . . Ramming 6 | . . 6 Kinetic 351 | . 23 328 Thermal 115 | . 51 64 Explosive . | . . . Electromagnetic 64 | . . 64 Impact . | . . . Slashing . | . . . Piercing . | . . . Highest Corruption 1 | . . 1 Average Corruption 1 | . . 1 Corruption Purged . | . . . Corruption Blocked . | . . . Overload Shots . | . . . Overflow Damage . | . . . Projectiles . | . . . Explosions . | . . . Melee . | . . . Knockbacks . | . . . Impact . | . . . Kinetic . | . . . Secondary . | . . . Self-Inflicted Damage 2 | . . 2 Shots . | . . . Rammed 4 | . . 4 Targets Rammed 4 | . . 4 Kicked . | . . . Crushed . | . . . Highest Temperature 165 | . 165 86 Average Temperature 46 | . 92 29 Received Heat Transfer 525 | . 45 480 Siege Activations . | . . . Robots Corrupted . | . . . Combat Hostiles . | . . . Parts Fried . | . . . Impact Corruptions . | . . . Robots Melted . | . . . Combat Hostiles . | . . . Parts Melted 2 | . 1 1 Heat Transferred 555 | . 222 333 Parts Sabotaged . | . . . Parts Stolen . | . . . Parts Stripped . | . . . Power Chain Reactions . | . . . Alert | -11 -10 -9 ------- Run | Yrd Mat Mat Peak Influence 315 | . 55 315 Initial 22 | . . 22 Average 68 | . 43 93 Maximum Alert Level 1 | . . 1 Low Security (%) 96 | 100 100 94 Level 1 3 | . . 5 Level 2 . | . . . Level 3 . | . . . Level 4 . | . . . Level 5 . | . . . High Security . | . . . Max Security . | . . . Squads Dispatched 2 | . . 2 Investigation 2 | . . 2 Extermination . | . . . Reinforcement . | . . . Assault . | . . . Garrison . | . . . Intercept . | . . . Searches Triggered . | . . . Construction Impeded . | . . . Haulers Reinforced . | . . . Active Scanning Responses . | . . . Cargo Convoy Interrupts . | . . . Stealth | -11 -10 -9 --------- Run | Yrd Mat Mat Distress Signals 1 | . . 1 Communications Jammed . | . . . Distress Signals . | . . . Times Spotted 24 | . 2 22 Peak Tracking Total 12 | . 2 12 Tactical Retreats 5 | . . 5 Traps | -11 -10 -9 ------- Run | Yrd Mat Mat Traps Triggered 4 | . 2 2 Indirectly . | . . . Trap Hack Attempts . | . . . Triggered . | . . . Disarmed . | . . . Reprogrammed . | . . . Reused . | . . . Traps Extracted . | . . . Installed . | . . . Triggered . | . . . Machines | -11 -10 -9 ---------- Run | Yrd Mat Mat Machines Disabled . | . . . Max in Single Turn . | . . . Machines Repaired . | . . . Machines Dismantled . | . . . Machines Sabotaged . | . . . Overloaded Fab Kills . | . . . Hacking | -11 -10 -9 --------- Run | Yrd Mat Mat Machines Accessed 3 | . 1 2 Terminals 3 | . 1 2 Fabricators . | . . . Repair Stations . | . . . Recycling Units . | . . . Scanalyzers . | . . . Garrison Access . | . . . Total Hacks 14 | . 4 10 Successful 6 | . 2 4 Failed 8 | . 2 6 Catastrophic 2 | . . 2 Database Lockouts . | . . . Manual . | . . . Terminals 14 | . 4 10 Fabricators . | . . . Repair Stations . | . . . Recycling Units . | . . . Scanalyzers . | . . . Garrison Access . | . . . Terminal Hacks 6 | . 2 4 Record 3 | . 1 2 Robot Analysis 1 | . 1 . Reinforcement Status 1 | . . 1 Zone Layout 1 | . . 1 Fabricator Hacks . | . . . Repair Station Hacks . | . . . Recycling Unit Hacks . | . . . Scanalyzer . | . . . Garrison Access Hacks . | . . . Unauthorized Hacks . | . . . Terminals . | . . . Fabricators . | . . . Repair Stations . | . . . Recycling Units . | . . . Scanalyzers . | . . . Garrison Access . | . . . Data Cores Recovered . | . . . Used . | . . . Hacking Detections 3 | . 1 2 Full Trace Events 2 | . . 2 Feedback Events . | . . . Feedback Blocked . | . . . Robot Schematics Acquired . | . . . Robots Built . | . . . Authchips . | . . . Time . | . . . Total Robot Build Rating . | . . . Part Schematics Acquired . | . . . Parts Built . | . . . Authchips . | . . . Time . | . . . Total Part Build Rating . | . . . Parts Repaired . | . . . Time . | . . . Parts Recycled . | . . . Recycled Matter . | . . . Retrieved Matter . | . . . Retrieved Components . | . . . Parts Scanalyzed . | . . . Part Schematics Acquired . | . . . Parts Damaged . | . . . Bothacking | -11 -10 -9 ------------ Run | Yrd Mat Mat Used RIF Installer . | . . . Robots Hacked . | . . . Non-combat . | . . . Combat . | . . . Robot Hacks Applied . | . . . Relay Couplers Released . | . . . Fabnet Peak Effective % . | . . . Robots Rewired . | . . . Allies Hacked . | . . . Hacks Repelled . | . . . Allies | -11 -10 -9 -------- Run | Yrd Mat Mat Total Allies . | . . . Largest Group . | . . . Highest-Rated Group . | . . . Highest-Rated Ally . | . . . Total Orders . | . . . Ally Attacks . | . . . Total Damage . | . . . Kills . | . . . Allies Corrupted . | . . . Allies Melted . | . . . Intel | -11 -10 -9 ------- Run | Yrd Mat Mat Robot Analysis Total 1 | . 1 . Derelict Logs Recovered . | . . . Drone Launches . | . . . Drone Recoveries . | . . . Exploration | -11 -10 -9 ------------- Run | Yrd Mat Mat Turns Passed 624 | 45 232 347 Spaces Moved 455 | 40 176 239 Core 29 | 23 . 6 Treads . | . . . Legs 313 | 17 176 120 Wheels 113 | . . 113 Hover . | . . . Flight . | . . . Fastest Speed 50 | 50 120 90 Average Speed 108 | 79 120 105 Slowest Speed 150 | 120 120 150 Overloaded Moves . | . . . Propulsion Burnouts . | . . . Robots Hopped . | . . . Cave-ins Triggered . | . . . Exploration Rate (%) 19 | 3 25 30 Regions Visited 2 Branch Regions . Pre-discovered Areas . | . . . Known Exits Taken . | . . . Unknown Exits Taken 2 | 1 1 . Scrap Searched . | . . . Spaces Dug . | . . . Terrain Destroyed . | . . . Melee . | . . . Projectile . | . . . AOE . | . . . Terrain Rammed . | . . . Walls Destroyed . | . . . Machines Disabled . | . . . Actions | -11 -10 -9 --------- Run | Yrd Mat Mat Total 538 | 52 188 298 Wait . | . . . Move 453 | 39 175 239 Hop . | . . . Pick Up 23 | 5 3 15 Fast Attach 3 | 2 . 1 Attach 17 | 4 1 12 Detach 1 | . . 1 Swap 5 | 1 2 2 Drop 4 | 1 2 1 Fire 28 | . 5 23 Melee . | . . . Ram 4 | . . 4 Kick . | . . . Crush . | . . . Escape Stasis . | . . . Rewire . | . . . Trap . | . . . Miscellaneous . | . . . Route ------- -11/Scrapyard -10/Materials -9/Materials History --------- Turn | Location | Event 2 | -11/Scrapyard | Discovered new exit (range 16) 46 | -11/Scrapyard | Entered Materials 272 | -10/Materials | Discovered new exit (range 4) 278 | -10/Materials | Entered another Materials area 278 | -9/Materials | Evolved 2 slots: Power x1, Weapon x1 312 | -9/Materials | Build established: Mutant 534 | -9/Materials | Core integrity fell below 50% 537 | -9/Materials | Core integrity fell below 20% 564 | -9/Materials | Lost 5 parts (1p1n2u1w) 625 | -9/Materials | Destroyed by G-34 Mercenary with Small Laser Last Messages --------------- Acquired EM Shotgun. Ion Engine destroyed. EM Shotgun destroyed. Med. Matter Pod destroyed. Structural Scanner destroyed. Arm. Wheel destroyed. Slammed into G-34 Mercenary. Destabilizing: System corrupted (+1). Slammed into G-34 Mercenary. Acquired Terrain Scan Processor. Acquired Autogun. Acquired EM Pulse Gun. Acquired Autogun. G-34 Mercenary destroyed. Switching to secondary target: Y-45 Defender. Y-45 Defender destroyed. Switching to secondary target: G-34 Mercenary. G-34 Mercenary destroyed. B-36 Bruiser destroyed. U-05 Engineer builds a Door. Map ----- +----------------------------------------------------+ | | | | | | | | | | | | | ?????????????????????????????????????????????????? | | ?????????????????????????????????????????????????? | | ?????????????????????????????????????????????????? | | ?????????????????????????????????????????????????? | | ?????????????????????????????????????????????????? | | ?????????????????????????????????????????????????? | | ?????????????????????????????????????????????????? | | ?????????????????????????????????????????????????? | | ?????????????????????????????????????????????????? | | ?????????????????????????????????????????????????? | | ?????????????????????????????????????????????????? | | ?????????????????????????????????????????????????? | | ?????????????????????????????????????????????????? | | ?????????????????????????????????????????????????? | | ?????????????????????????????????????????????????? | | ?????????????????????????????????????????????????? | | ????????????#?????????########???????????????????? | | ????????????# ###??# #???????????????????? | | ?????????? # #???????????????????? | | ???????????? T g/! @ #???????????????????? | | ?????????????????######=!/ #???????????????????? | | ??????????????????????#%=[! #???????????????????? | | ??????????????????????#=%*= !#???????????????????? | | ?????????????+ #######g######???????????????????? | | ?????????????# [% #??????????????????????? | | ?????????????# =% #??????????????????????? | | ?????????????# ##+##### #??????????????????????? | | ???????????????????????# #??????????????????????? | | ???????????????????????# #????????######## """ | | ???????????????????????# #????################### | | ???????????????????????# #???## # !!! | | ???????????????????????# #???## """"" # !!! | | ???????????????????????# #???## """"" # % !!! | | ???????????????????????# #???## """"" # ! % | | ???????????????????????# #???## """"" #####/#### | | ???????????????????????# #???## """"" ####%% | | ???????????????????????# #???## """"" / | | ???????????????????????# #???## """"" #### | | ???????????????????????# ###### ########## | | ??????????????????###### ##########+######## | | ?????????????"" ####### """ | | ???????????? T + """ | | ???????????# #### """ | | ???????????# ###+############## #### | +----------------------------------------------------+ Best States ------------- Heat Dissipation 28 Energy Generation 10 Energy Capacity 250 Matter Stores 300 Matter Capacity 400 Sight Range 16 Terrain Scan Density 85 Armor Coverage 150 Evasion (%) 55 Item Schematics ----------------- None Robot Schematics ------------------ None Fabricated ------------ Nothing Alien Tech Used ----------------- None Achievements -------------- None Challenges ------------ None Game ------ Seed SiegeSubdwellerMachine Manual? 0 Play Time 00:11:09 Cumulative 3.0 hours Start 2024.04.21 @ 08:55:19 End 2024.04.21 @ 09:05:53 Sessions 1 Manual Loads 0 Difficulty Rogue Special Mode None Game No. 9 Rogue 9 Adventurer 0 Explorer 0 Win Type - Total 0 Types 0/0/0/0/0/0/0/0/0 Lore% 11 Gallery% 9 Achievement% 8 Wizard Run 0 Options --------- Layout 1 ASCII 0 Keyboard 0 Movement Mouse Keybinds 0 Fullscreen 1 Font 24/Smallcaps Map View 50x35 Zoom Use 0% Tactical HUD 0 Map Filters NONE Filters NONE Steam 1 RUN: bf35b832-652b-4bbd-a5e9-52219a316ad6